bitfinex-derivatives/quotes_SOLF0:USTF0_20250624
["timestamp","ask_amount","ask_price","bid_price","bid_amount"]
[1750724123260,41.95487403,144.25,144.2,6.9295]
[1750724124256,6.9278,144.24,144.18,3.60366328]
[1750724124655,48.88237403,144.25,144.21,6.9286]
[1750724124960,41.95487403,144.25,144.18,7.05853731]
[1750724125966,41.95487403,144.25,144.18,3.60366328]
[1750724126461,3.45487403,144.23,144.18,3.60366328]
[1750724126759,10.38337403,144.23,144.19,6.9296]
[1750724127551,6.9285,144.23,144.19,6.9296]
[1750724127761,10.38337403,144.23,144.19,6.9296]
[1750724128763,38.5,144.25,144.18,3.60366328]
[1750724128947,38.5,144.25,144.18,7.05853731]
[1750724130664,38.5,144.25,144.2,6.9295]
[1750724130861,41.95487403,144.25,144.18,7.05853731]
[1750724131059,41.95487403,144.25,144.18,3.60366328]
[1750724132753,6.9282,144.23,144.19,6.9299]
[1750724133251,6.9282,144.23,144.18,3.60366328]
[1750724134361,6.9278,144.24,144.2,6.9296]
[1750724134551,41.95487403,144.25,144.18,3.60366328]
[1750724134957,48.88217403,144.25,144.2,6.9295]
[1750724135264,48.88217403,144.25,144.18,3.60366328]
[1750724135559,45.4273,144.25,144.21,6.9288]
[1750724135964,48.88217403,144.25,144.21,6.9288]
[1750724136862,45.4273,144.25,144.21,6.9288]
[1750724137067,3.45487403,144.24,144.18,3.60366328]
[1750724137274,3.45487403,144.22,144.18,3.60366328]
[1750724137868,3.45487403,144.22,144.19,6.9299]
[1750724138066,3.45487403,144.22,144.18,3.60366328]
[1750724138471,10.38367403,144.22,144.19,6.93]
[1750724138869,3.45487403,144.22,144.19,6.93]
[1750724139364,3.45487403,144.22,144.2,6.9295]
[1750724139561,3.45487403,144.24,144.18,3.60366328]
[1750724139961,3.45487403,144.24,144.21,6.9288]
[1750724141772,10.38257403,144.24,144.21,6.9288]
[1750724141973,3.45487403,144.24,144.21,6.9288]
[1750724142177,3.45487403,144.24,144.22,6.9286]
[1750724142364,38.5,144.25,144.19,3.45487403]
[1750724142565,38.5,144.25,144.21,3.45487403]
[1750724143081,44.65217403,144.28,144.23,6.9281]
[1750724143263,6.9263,144.27,144.19,5.68147403]
[1750724143665,6.9263,144.27,144.23,6.9279]
[1750724143961,6.9263,144.27,144.19,5.68147403]
[1750724144162,6.9263,144.27,144.23,6.9278]
[1750724144359,3.45487403,144.24,144.18,3.60366328]
[1750724144572,3.45487403,144.22,144.18,3.60366328]
[1750724144868,3.45487403,144.2,144.18,3.60366328]
[1750724145465,6.9301,144.19,144.18,3.60366328]
[1750724145970,10.38487403,144.2,144.18,3.60366328]
[1750724146176,3.45487403,144.2,144.18,3.60366328]
[1750724147360,6.9292,144.21,144.18,3.60366328]
[1750724147566,3.45487403,144.21,144.18,10.53416328]
[1750724148767,3.45487403,144.21,144.19,6.9298]
[1750724148967,3.45487403,144.21,144.18,3.60366328]
[1750724149375,3.45487403,144.21,144.19,6.9301]
[1750724149877,41.156,144.22,144.2,6.9296]
[1750724150071,44.61087403,144.22,144.2,6.9296]
[1750724151376,42.35487403,144.22,144.2,6.9296]
[1750724151770,38.9,144.22,144.2,6.9296]
[1750724151971,42.35487403,144.22,144.2,6.9296]
[1750724152669,5.17903897,144.21,144.18,3.60366328]
[1750724152870,3.45487403,144.19,144.18,3.60366328]
[1750724153070,6.9301,144.19,144.18,3.60366328]
[1750724153277,10.38497403,144.19,144.18,3.60366328]
[1750724153673,3.45487403,144.19,144.11,8.25337403]
[1750724153878,3.45487403,144.17,144.13,6.9329]
[1750724154379,51.28557403,144.18,144.14,6.9323]
[1750724154672,44.35487403,144.18,144.09,46.74057403]
[1750724155073,3.45487403,144.17,144.13,6.9329]
[1750724156371,40.9,144.18,144.09,46.74057403]
[1750724156681,40.9,144.19,144.11,3.45487403]
[1750724157180,40.92,144.2,144.13,3.45487403]
[1750724157571,47.8497,144.2,144.13,3.45487403]
[1750724157972,47.8497,144.2,144.12,3.45487403]
[1750724158278,6.9302,144.19,144.13,2.3635]
[1750724158476,10.38507403,144.19,144.13,2.3635]
[1750724159076,3.45487403,144.19,144.13,2.3635]
[1750724159672,3.45487403,144.19,144.15,6.932]
[1750724160076,3.45487403,144.19,144.13,2.3635]
[1750724160282,51.30457403,144.2,144.13,2.3635]
[1750724160479,51.30457403,144.2,144.13,4.616]
[1750724160872,51.30457403,144.2,144.16,6.9314]
[1750724162482,6.9301,144.19,144.16,6.9314]
[1750724162871,44.37487403,144.2,144.16,6.9314]
[1750724163076,51.30467403,144.2,144.17,6.931]
[1750724163470,51.30467403,144.2,144.13,4.616]
[1750724163875,51.30467403,144.2,144.15,6.9319]
[1750724164284,6.9302,144.19,144.15,6.9319]
[1750724164878,51.30457403,144.2,144.16,6.9314]
[1750724165078,44.37487403,144.2,144.16,6.9314]
[1750724165788,3.45487403,144.18,144.13,4.616]
[1750724166682,3.45487403,144.18,144.15,6.9317]
[1750724168080,10.38557403,144.18,144.15,6.9317]
[1750724168386,10.38557403,144.18,144.14,6.9321]
[1750724168587,3.45487403,144.18,144.14,6.9321]
[1750724168789,3.45487403,144.19,144.13,2.3635]
[1750724168979,3.45487403,144.17,144.13,9.2961]
[1750724169287,3.45487403,144.17,144.1,2.2012]
[1750724169481,3.45487403,144.17,144.1,4.413]
[1750724170186,10.38507403,144.19,144.11,3.45487403]
[1750724170387,10.38507403,144.19,144.16,6.9314]
[1750724171088,40.92,144.18,144.16,6.9314]
[1750724171387,129.37487403,144.17,144.08,3.45487403]
[1750724171688,129.37487403,144.17,144.1,2.3834]
[1750724171888,40.92,144.17,144.1,5.83827403]
[1750724172386,47.8514,144.17,144.1,5.83827403]
[1750724172780,40.92,144.17,144.1,5.83827403]
[1750724172984,51.30607403,144.17,144.1,5.83827403]
[1750724173489,51.30607403,144.17,144.13,6.9327]
[1750724175291,51.30607403,144.17,144.14,6.9324]
[1750724175482,44.37487403,144.17,144.1,5.83827403]
[1750724176286,51.30597403,144.17,144.1,5.83827403]
[1750724176891,51.30597403,144.17,144.12,6.9334]
[1750724177391,6.9316,144.16,144.12,6.9334]
[1750724177591,44.37487403,144.17,144.12,6.9334]
[1750724177985,6.9315,144.16,144.12,6.9334]
[1750724178596,6.9315,144.16,144.1,12.77227403]
[1750724178891,6.932,144.15,144.1,12.77227403]
[1750724179192,44.37487403,144.17,144.11,6.9338]
[1750724179395,44.37487403,144.17,144.1,5.83827403]
[1750724179693,44.37487403,144.17,144.1,2.3834]
[1750724180096,6.9328,144.14,144.1,2.3834]
[1750724180296,44.37487403,144.17,144.1,2.3834]
[1750724180589,3.45487403,144.15,144.1,2.3834]
[1750724181892,3.45487403,144.15,144.06,42.1274529]
[1750724182096,3.45487403,144.13,144.06,40.92]
[1750724182393,44.37487403,144.13,144.06,47.8559]
[1750724182594,40.92,144.13,144.07,3.45487403]
[1750724183387,6.9343,144.11,144.07,3.45487403]
[1750724183589,44.37487403,144.13,144.06,3.45487403]
[1750724183991,6.9343,144.11,144.06,10.39077403]
[1750724184293,44.37487403,144.13,144.06,10.39077403]
[1750724184793,6.9344,144.1,144.07,6.9357]
[1750724185392,6.9353,144.09,144.05,10.39127403]
[1750724185695,44.37487403,144.13,144.04,6.9027]
[1750724185886,44.37487403,144.13,144.04,10.35757403]
[1750724186085,44.37487403,144.13,144.06,6.936]
[1750724186086,6.9349,144.09,144.06,6.936]
[1750724186281,44.37487403,144.13,144.04,6.9027]
[1750724186282,3.45487403,144.11,144.04,6.9027]
[1750724186895,6.9345,144.1,144.06,6.936]
[1750724188399,6.935,144.09,144.06,6.936]
[1750724188593,3.45487403,144.11,144.06,6.936]
[1750724189098,6.9347,144.1,144.06,6.936]
[1750724190398,3.45487403,144.11,144.06,6.936]
[1750724191398,6.9346,144.1,144.06,6.936]
[1750724191604,3.45487403,144.11,144.05,6.9367]
[1750724191900,3.45487403,144.11,144.04,6.9027]
[1750724192090,10.6309738,144.1,144.01,1.20785103]
[1750724192394,3.45487403,144.07,144.0,4.658]
[1750724192603,5.18224885,144.1,144.01,3.45487403]
[1750724192604,41.2,144.08,144.01,3.45487403]
[1750724193294,41.2,144.09,144.01,3.45487403]
[1750724193495,41.2,144.09,144.06,6.936]
[1750724193701,41.2,144.09,144.01,3.45487403]
[1750724194801,41.2,144.09,144.06,6.936]
[1750724195902,10.39047403,144.08,144.01,3.45487403]
[1750724196104,3.45487403,144.08,144.01,3.45487403]
[1750724197189,3.45487403,144.08,144.05,6.9367]
[1750724198096,10.39037403,144.08,144.04,6.9371]
[1750724198497,3.45487403,144.08,144.04,6.9371]
[1750724198708,3.45487403,144.06,144.03,6.9374]
[1750724198995,41.2,144.05,144.03,6.9374]
[1750724199994,41.2,144.05,144.04,6.9373]
[1750724200397,41.2,144.05,143.99,3.54128165]
[1750724200602,41.2,144.05,144.03,6.9375]
[1750724201097,41.2,144.05,144.04,6.9373]
[1750724203898,87.2482,144.1,144.0,8.06267403]
[1750724203899,3.45487403,144.09,144.0,8.06267403]
[1750724204204,41.2,144.08,144.02,3.45487403]
[1750724204397,41.2,144.08,144.06,6.936]
[1750724204698,41.2,144.08,144.0,49.26267403]
[1750724205597,41.2,144.08,144.05,6.9365]
[1750724206511,3.45487403,144.07,144.0,8.06267403]
[1750724206806,3.45487403,144.05,143.99,2.3332]
[1750724206994,41.22,144.04,143.99,2.3332]
[1750724207193,41.22,144.04,144.01,6.9383]
[1750724207993,3.45487403,144.03,144.0,6.9391]
[1750724208597,3.45487403,144.03,144.01,6.9387]
[1750724208794,41.22,144.04,144.01,6.9387]
[1750724208992,41.22,144.04,143.96,7.02722346]
[1750724209201,41.22,144.04,143.96,3.57234943]
[1750724209402,41.22,144.04,143.97,3.45487403]
[1750724209601,41.22,144.04,143.97,65.45487403]
[1750724209802,2.6123,144.1,143.99,3.45487403]
[1750724210103,3.45487403,144.07,143.99,3.45487403]
[1750724210306,3.45487403,144.07,144.0,4.5083]
[1750724210509,41.22,144.08,144.01,3.45487403]
[1750724210698,41.22,144.08,144.01,5.75217403]
[1750724210899,48.1555,144.08,144.04,6.9371]
[1750724211509,6.9359,144.07,144.03,6.9374]
[1750724212609,10.39077403,144.07,144.03,6.9374]
[1750724212806,599.1,144.11,144.01,5.75217403]
[1750724213111,39.86,144.1,144.03,3.45487403]
[1750724213808,46.7947,144.1,144.05,6.9364]
[1750724214011,3.45487403,144.09,144.05,6.9364]
[1750724214411,3.45487403,144.09,144.06,6.9362]
[1750724215002,3.45487403,144.09,144.01,45.61217403]
[1750724215402,3.45487403,144.09,144.05,6.9364]
[1750724215603,3.45487403,144.09,144.01,45.61217403]
[1750724215806,39.86,144.1,144.03,3.45487403]
[1750724216007,39.86,144.1,144.05,3.45487403]
[1750724216508,39.86,144.1,144.01,42.1573]
[1750724216713,39.86,144.13,144.09,6.9349]
[1750724219613,8.61282126,144.12,144.01,2.2973]
[1750724219813,8.61282126,144.12,144.03,3.45487403]
[1750724219814,5.15799834,144.11,144.03,3.45487403]
[1750724220017,13.94140129,144.12,144.03,3.45487403]
[1750724220219,3.45487403,144.1,144.05,6.9367]
[1750724220411,39.86,144.09,144.03,3.45487403]
[1750724220613,39.86,144.09,144.01,5.75217403]
[1750724220814,45.02213475,144.09,144.01,5.75217403]
[1750724221013,39.86,144.09,144.01,5.75217403]
[1750724221213,46.795,144.09,144.04,6.937]
[1750724221419,39.86,144.09,144.01,5.75217403]
[1750724221930,39.86,144.09,144.05,6.9367]
[1750724222221,39.86,144.09,144.01,5.75217403]
[1750724222423,124.86,144.09,144.01,5.75217403]
[1750724223832,124.86,144.09,144.04,6.9368]
[1750724224323,124.86,144.09,144.01,5.75217403]
[1750724224523,124.86,144.09,144.05,6.9364]
[1750724224716,124.86,144.09,144.03,3.45487403]
[1750724226223,128.31487403,144.09,144.01,5.75217403]
[1750724226826,128.31487403,144.09,144.04,6.9369]
[1750724227030,5.17888539,144.08,144.01,5.75217403]
[1750724227218,128.31487403,144.09,144.01,5.75217403]
[1750724227418,5.17888539,144.08,144.04,6.937]
[1750724227620,135.24987403,144.09,144.04,6.937]
[1750724227922,5.17918103,144.08,144.04,6.937]
[1750724228127,135.24987403,144.09,144.04,6.937]
[1750724228329,5.17935844,144.08,144.01,5.75217403]
[1750724228625,135.24987403,144.09,144.01,5.75217403]
[1750724228825,5.18304081,144.08,144.01,5.75217403]
[1750724229026,135.24987403,144.09,144.04,6.9369]
[1750724229229,10.64194688,144.08,144.04,6.9369]
[1750724229428,135.24987403,144.09,144.04,6.9369]
[1750724229724,10.64299435,144.08,144.04,6.9369]
[1750724229919,135.24987403,144.09,144.01,5.75217403]
[1750724229920,128.31487403,144.09,144.01,5.75217403]
[1750724230733,128.31487403,144.09,144.06,6.9362]
[1750724231119,124.86,144.09,144.07,6.9357]
[1750724231732,5.18716361,144.08,144.07,6.9357]
[1750724232723,124.86,144.09,144.07,6.9357]
[1750724232923,124.86,144.09,144.06,6.9361]
[1750724233632,124.86,144.09,144.07,6.9356]
[1750724233833,5.4656264,144.08,144.07,6.9356]
[1750724234426,5.4656264,144.08,144.06,6.9362]
[1750724234627,39.86,144.09,144.01,2.2973]
[1750724234921,5.4690765,144.08,144.06,6.9362]
[1750724235121,39.86,144.09,144.06,6.9362]
[1750724235329,5.46981681,144.08,144.06,6.9362]
[1750724235533,39.86,144.09,144.06,6.9362]
[1750724235735,10.66349078,144.08,144.06,6.9362]
[1750724235921,39.86,144.09,144.06,6.9362]
[1750724236122,10.6629652,144.08,144.07,6.9358]
[1750724236831,5.46978948,144.08,144.07,6.9358]
[1750724237035,10.6592879,144.08,144.07,6.9358]
[1750724237227,10.6592879,144.08,144.06,6.9361]
[1750724237429,39.86,144.09,144.06,6.9361]
[1750724237635,10.65426835,144.08,144.06,6.9361]
[1750724237933,39.86,144.09,144.06,6.9361]
[1750724238132,10.65717349,144.08,144.06,6.9361]
[1750724238331,39.86,144.09,144.06,6.9361]
[1750724238531,10.66005802,144.08,144.06,6.9361]
[1750724238730,39.86,144.09,144.06,6.9361]
[1750724239037,10.66012298,144.08,144.06,6.9361]
[1750724239232,39.86,144.09,144.05,6.9366]
[1750724239438,10.66050346,144.08,144.05,6.9366]
[1750724239638,39.86,144.09,144.05,6.9366]
[1750724239826,10.65954543,144.08,144.05,6.9366]
[1750724240031,39.86,144.09,144.05,6.9366]
[1750724240234,10.66087812,144.08,144.06,6.9362]
[1750724240531,39.86,144.09,144.06,6.9362]
[1750724240730,10.66208312,144.08,144.06,6.9362]
[1750724240935,39.86,144.09,144.06,6.9362]
[1750724241133,10.66203476,144.08,144.05,6.9366]
[1750724241332,39.86,144.09,144.01,5.75217403]
[1750724241538,10.65799319,144.08,144.01,5.75217403]
[1750724241738,46.795,144.09,144.04,6.9369]
[1750724241931,10.65716221,144.08,144.04,6.9369]
[1750724242135,3.45487403,144.08,144.04,6.9369]
[1750724242336,3.45487403,144.08,144.03,6.9376]
[1750724242537,3.45487403,144.06,143.97,52.78069322]
[1750724242844,3.45487403,144.06,143.98,3.45487403]
[1750724243132,38.8,144.05,143.98,3.45487403]
[1750724243346,38.8,144.05,143.99,0.84]
[1750724243729,38.8,144.05,144.03,6.9374]
[1750724244440,38.8,144.05,144.04,6.9373]
[1750724247234,38.8,144.05,143.99,0.84]
[1750724247434,3.45487403,144.04,143.99,0.84]
[1750724248235,38.8,144.05,143.99,0.84]
[1750724248638,3.45487403,144.06,143.99,0.84]
[1750724248839,49.41497233,144.05,143.99,0.84]
[1750724249043,38.8,144.05,143.99,0.84]
[1750724249641,38.8,144.05,144.01,6.9385]
[1750724250042,10.60942792,144.04,143.99,0.84]
[1750724250345,3.45487403,144.02,143.99,0.84]
[1750724250539,38.8,144.01,143.99,0.84]
[1750724251339,38.8,144.01,143.99,7.7796]
[1750724251538,38.8,144.01,143.99,0.84]
[1750724252048,85.0,144.05,143.99,0.84]
[1750724252347,49.39851195,144.04,143.99,0.84]
[1750724252541,38.8,144.04,143.99,0.84]
[1750724252744,14.05109268,144.03,143.99,0.84]
[1750724252945,3.45487403,144.03,143.99,0.84]
[1750724253339,43.86340577,144.04,143.99,0.84]
[1750724253541,14.03764428,144.03,143.99,0.84]
[1750724253741,38.8,144.04,143.99,0.84]
[1750724254045,20.97427856,144.03,143.99,0.84]
[1750724254233,10.39297403,144.03,143.99,0.84]
[1750724254441,6.9392,144.0,143.99,0.84]
[1750724254638,52.7389132,144.0,143.99,0.84]
[1750724254937,49.25458723,144.0,143.99,0.84]
[1750724255134,45.7997132,144.0,143.99,0.84]
[1750724255340,40.66,144.0,143.99,0.84]
[1750724257343,12.72617403,144.02,143.99,0.84]
[1750724257942,5.78787403,144.02,143.99,0.84]
[1750724258140,40.66,144.03,143.99,0.84]
[1750724258644,3.45487403,144.04,143.99,0.84]
[1750724258839,3.45487403,144.04,144.0,6.9389]
[1750724259343,3.45487403,144.04,143.99,7.7796]
[1750724259549,3.45487403,144.04,143.99,0.84]
[1750724260041,3.45487403,144.04,144.0,6.9389]
[1750724260246,5.12169265,144.05,143.99,0.84]
[1750724260449,3.45487403,144.08,144.03,6.9375]
[1750724260643,6.9363,144.07,144.0,3.45487403]
[1750724260849,8.57643109,144.08,143.99,4.29487403]
[1750724261455,3.45487403,144.06,143.99,4.29487403]
[1750724262446,3.45487403,144.06,144.02,6.9378]
[1750724263156,8.57746401,144.08,143.99,4.29487403]
[1750724263349,3.45487403,144.08,144.0,2.4149]
[1750724263552,8.58041037,144.08,144.0,2.4149]
[1750724263749,3.45487403,144.08,144.0,2.4149]
[1750724263955,8.58041037,144.08,144.04,6.9372]
[1750724264142,8.58041037,144.08,144.0,2.4149]
[1750724264347,10.39037403,144.08,144.04,6.9373]
[1750724264543,10.39037403,144.08,144.0,2.4149]
[1750724264544,15.51591037,144.08,144.0,2.4149]
[1750724264748,10.39037403,144.08,144.0,2.4149]
[1750724264943,3.45487403,144.06,144.03,6.9375]
[1750724265948,8.57796758,144.06,144.03,6.9375]
[1750724266443,3.45487403,144.06,144.04,6.9372]
[1750724267054,3.45487403,144.06,144.0,2.4149]
[1750724267055,3.45487403,144.06,144.03,6.9376]
[1750724268157,3.45487403,144.06,144.04,6.9373]
[1750724268352,3.45487403,144.06,144.01,0.25]
[1750724268555,3.45487403,144.06,144.03,6.9374]
[1750724269959,3.45487403,144.06,144.01,0.25]
[1750724270159,12.07566549,144.08,144.01,0.25]
[1750724270160,6.9356,144.08,144.01,0.25]
[1750724270359,3.45487403,144.07,144.01,0.25]
[1750724271462,3.45487403,144.07,144.05,6.9364]
[1750724271655,3.45487403,144.07,144.01,46.55537403]
[1750724272358,3.45487403,144.07,144.05,6.9365]
[1750724276163,3.45487403,144.07,144.01,43.1005]
[1750724276761,5.45511231,144.08,144.02,3.45487403]
[1750724277069,44.13487403,144.1,144.02,5.81667403]
[1750724277260,44.13487403,144.1,144.09,6.9349]
[1750724277568,49.32336986,144.1,144.09,6.9349]
[1750724277767,3.45487403,144.1,144.09,6.9349]
[1750724278067,91.40740738,144.17,144.08,3.45487403]
[1750724278274,15.69628808,144.16,144.1,3.45487403]
[1750724278565,5.18943141,144.15,144.14,6.9322]
[1750724278967,85.0,144.17,144.14,6.9322]
[1750724280466,85.0,144.17,144.11,2.3618]
[1750724280467,85.0,144.17,144.13,6.9328]
[1750724280767,85.0,144.17,144.11,2.3618]
[1750724280960,85.0,144.17,144.11,5.81667403]
[1750724281466,88.45487403,144.17,144.11,5.81667403]
[1750724282563,88.45487403,144.17,144.14,6.9322]
[1750724283162,40.66,144.18,144.13,3.45487403]
[1750724284271,40.66,144.18,144.15,6.9316]
[1750724284565,40.66,144.18,144.11,2.3618]
[1750724284773,40.66,144.18,144.12,3.45487403]
[1750724286174,40.66,144.18,144.15,6.9317]
[1750724287569,44.11487403,144.18,144.14,6.9324]
[1750724287774,51.04567403,144.18,144.11,2.3618]
[1750724288270,51.04567403,144.18,144.13,6.9326]
[1750724288473,44.11487403,144.18,144.11,2.3618]
[1750724288973,40.66,144.18,144.12,3.45487403]
[1750724289569,40.66,144.18,144.15,6.9317]
[1750724290166,40.66,144.18,144.12,3.45487403]
[1750724291073,85.0,144.2,144.12,3.45487403]
[1750724291475,85.0,144.2,144.12,5.84987403]
[1750724291677,85.0,144.2,144.13,39.78]
[1750724292682,142.28,144.25,144.18,3.45487403]
[1750724292683,39.78,144.25,144.18,3.45487403]
[1750724292978,39.78,144.25,144.23,6.9281]
[1750724293578,39.78,144.25,144.24,6.9277]
[1750724294266,39.78,144.25,144.21,0.25]
[1750724294267,39.78,144.25,144.23,6.9281]
[1750724294468,42.1001,144.28,144.21,0.25]
[1750724294665,42.1001,144.28,144.21,3.70487403]
[1750724295178,49.0262,144.28,144.21,3.70487403]
[1750724295377,42.1001,144.28,144.21,3.70487403]
[1750724295679,42.1001,144.28,144.24,6.9273]
[1750724295874,39.78,144.28,144.24,6.9273]
[1750724296078,46.7061,144.28,144.24,6.9273]
[1750724296477,39.78,144.28,144.25,6.927]
[1750724296682,39.78,144.28,144.21,3.70487403]
[1750724296683,601.2466,144.3,144.23,3.45487403]
[1750724297173,39.78,144.31,144.29,6.9254]
[1750724297367,39.78,144.31,144.27,3.45487403]
[1750724297568,39.78,144.31,144.3,6.9249]
[1750724297770,6.04277403,144.35,144.27,3.45487403]
[1750724297771,39.76,144.34,144.27,3.45487403]
[1750724297975,39.76,144.34,144.29,3.45487403]
[1750724298168,39.76,144.34,144.32,6.9235]
[1750724298372,39.76,144.34,144.29,3.45487403]
[1750724298680,6.9239,144.32,144.26,7.0361]
[1750724298879,43.21487403,144.34,144.27,3.45487403]
[1750724299474,43.21487403,144.34,144.29,6.9253]
[1750724299868,43.21487403,144.34,144.27,3.45487403]
[1750724300080,39.76,144.34,144.27,3.45487403]
[1750724300281,39.76,144.34,144.29,3.45487403]
[1750724300473,39.76,144.34,144.26,7.0361]
[1750724300674,39.76,144.34,144.31,6.9241]
[1750724302482,13.31946702,144.32,143.98,12.92069322]
[1750724302780,3.45602982,144.09,143.91,1.20871106]
[1750724303281,43.21602982,144.11,144.06,6.9363]
[1750724303487,39.76,144.11,144.04,3.45602982]
[1750724303786,39.76,144.13,144.06,3.45602982]
[1750724303984,39.78,144.13,144.06,3.45602982]
[1750724304375,39.78,144.13,144.05,5.77359339]
[1750724304684,46.7131,144.13,144.04,39.78]
[1750724305183,39.78,144.13,144.07,6.9358]
[1750724305694,39.78,144.13,144.06,6.9363]
[1750724305980,39.78,144.13,144.05,62.0]
[1750724306380,39.78,144.13,144.08,6.9354]
[1750724307280,39.78,144.13,144.09,6.9348]
[1750724308082,39.78,144.13,144.1,6.9344]
[1750724308871,39.78,144.13,144.07,5.77359339]
[1750724309380,39.78,144.13,144.12,6.9336]
[1750724309586,39.78,144.16,144.07,5.77359339]
[1750724309982,39.78,144.16,144.14,6.9322]
[1750724310682,1.2272,144.23,144.11,5.77359339]
[1750724310989,45.55359339,144.22,144.13,5.77359339]
[1750724311180,45.55359339,144.22,144.18,6.9307]
[1750724311580,45.55359339,144.22,144.13,5.77359339]
[1750724312486,39.78,144.22,144.18,6.9303]
[1750724313077,39.78,144.22,144.17,6.931]
[1750724314088,39.78,144.22,144.18,6.9307]
[1750724314987,39.78,144.22,144.17,6.9311]
[1750724315185,5.77359339,144.21,144.13,2.4272]
[1750724315389,5.77359339,144.19,144.12,39.78]
[1750724315590,5.77359339,144.19,144.14,6.9323]
[1750724315989,5.77359339,144.19,144.12,39.78]
[1750724316484,5.77359339,144.19,144.14,6.9326]
[1750724316680,5.77359339,144.19,144.12,39.78]
[1750724316890,6.9299,144.2,144.12,39.78]
[1750724317792,6.9299,144.2,144.15,6.9318]
[1750724318296,6.9301,144.2,144.12,101.78]
[1750724318494,6.9301,144.2,144.15,6.9325]
[1750724318690,6.9314,144.18,144.12,39.78]
[1750724318898,40.72,144.18,144.09,46.48886661]
[1750724319191,5.76886661,144.17,144.09,40.72]
[1750724319391,6.933,144.15,144.06,50.95306661]
[1750724319591,6.933,144.15,144.06,45.1842]
[1750724319792,6.933,144.15,144.06,50.95306661]
[1750724320700,6.9333,144.14,144.06,50.95306661]
[1750724320901,47.6533,144.14,144.09,6.9352]
[1750724322301,40.72,144.14,144.1,6.935]
[1750724322703,40.72,144.14,144.06,4.4642]
[1750724322896,46.48886661,144.14,144.06,4.4642]
[1750724323798,5.76886661,144.12,144.05,43.0203]
[1750724324293,53.42216661,144.14,144.05,43.0203]
[1750724324696,46.48886661,144.14,144.05,48.78916661]
[1750724325196,46.48886661,144.14,144.06,62.0]
[1750724325504,46.48886661,144.14,144.11,6.9346]
[1750724327807,53.42206661,144.14,144.1,6.935]
[1750724327997,47.6532,144.14,144.1,6.935]
[1750724328399,53.42206661,144.14,144.1,6.935]
[1750724328594,46.48886661,144.14,144.1,6.935]
[1750724330202,44.18455584,144.14,144.1,6.935]
[1750724332309,51.11775584,144.14,144.1,6.935]
[1750724335113,47.6532,144.14,144.1,6.935]
[1750724335410,51.11775584,144.14,144.1,6.935]
[1750724336414,51.11765247,144.14,144.1,6.935]
[1750724337514,51.11765247,144.14,144.11,6.9346]
[1750724338420,51.11765247,144.14,144.1,6.935]
[1750724338614,6.9337,144.13,144.1,6.935]
[1750724338815,3.46445247,144.12,144.05,43.0203]
[1750724339610,3.46538545,144.12,144.05,43.0203]
[1750724339811,6.9348,144.11,144.08,6.936]
[1750724340013,85.0,144.13,144.05,2.2803]
[1750724340219,51.14184314,144.1,144.06,6.9367]
[1750724340818,40.74,144.1,144.04,2.2429]
[1750724341017,44.20634314,144.1,144.04,2.2429]
[1750724341319,51.14174314,144.1,144.06,6.9368]
[1750724341511,51.14174314,144.1,144.04,2.2429]
[1750724341717,44.20634314,144.1,144.04,2.2429]
[1750724341918,44.20634314,144.1,144.07,6.9362]
[1750724343122,40.74,144.1,144.04,2.2429]
[1750724343615,3.46634314,144.12,144.04,2.2429]
[1750724343809,3.46634314,144.12,144.05,2.385]
[1750724344208,10.40084314,144.12,144.08,6.9358]
[1750724345224,6.9349,144.11,144.08,6.9358]
[1750724345432,3.46634314,144.12,144.07,6.9364]
[1750724345730,6.935,144.11,144.07,6.9364]
[1750724346810,5.19891271,144.1,144.07,6.9364]
[1750724347027,6.935,144.11,144.07,6.9364]
[1750724347323,5.1989127,144.1,144.07,6.9364]